[Event "*** Titled Tuesday Blitz"]
[Site "Chess.com"]
[Date "2021.02.16"]
[Round "9"]
[White "elohunter1999"]
[Black "anon481216"]
[Result "0-1"]
[WhiteElo "2620"]
[BlackElo "2478"]
[TimeControl "180+1"]
[EndTime "11:48:19 PST"]
[Termination "anon481216 won on time"]

1. d4 {[%clk 0:03:00.9]} 1... d5 {[%clk 0:02:59.8]} 2. c4 {[%clk 0:03:00.8]}
2... dxc4 {[%clk 0:02:59.7]} 3. e4 {[%clk 0:02:59.4]} 3... Nf6 {[%clk
0:02:59.2]} 4. e5 {[%clk 0:02:59.4]} 4... Nd5 {[%clk 0:02:58.8]} 5. Bxc4 {[%clk
0:03:00.3]} 5... Nb6 {[%clk 0:02:58.8]} 6. Bd3 {[%clk 0:02:56.1]} 6... Nc6
{[%clk 0:02:57.4]} 7. Ne2 {[%clk 0:02:53]} 7... Bg4 {[%clk 0:02:56.6]} 8. Be3
{[%clk 0:02:23.9]} 8... Qd7 {[%clk 0:02:52.1]} 9. Nbc3 {[%clk 0:02:16.5]} 9...
O-O-O {[%clk 0:02:51.4]} 10. O-O {[%clk 0:02:01.3]} 10... Bxe2 {[%clk
0:02:25.3]} 11. Qxe2 {[%clk 0:01:43]} 11... Nxd4 {[%clk 0:02:23.4]} 12. Bxd4
{[%clk 0:01:42.6]} 12... Qxd4 {[%clk 0:02:23.2]} 13. Rfd1 {[%clk 0:01:42.7]}
13... Qf4 {[%clk 0:01:36.7]} 14. e6 {[%clk 0:01:12.5]} 14... fxe6 {[%clk
0:01:26.4]} 15. Ba6 {[%clk 0:00:42.6]} 15... Rd6 {[%clk 0:01:12.3]} 16. Rxd6
{[%clk 0:00:37.1]} 16... exd6 {[%clk 0:01:09.7]} 17. Qxe6+ {[%clk 0:00:35.9]}
17... Kb8 {[%clk 0:01:09.6]} 18. Qe8+ {[%clk 0:00:18.8]} 18... Nc8 {[%clk
0:01:08.7]} 19. Bc4 {[%clk 0:00:14.1]} 19... g6 {[%clk 0:01:00.9]} 20. Be6
{[%clk 0:00:13.3]} 20... Bg7 {[%clk 0:01:00.6]} 21. Qd7 {[%clk 0:00:12]} 21...
Bxc3 {[%clk 0:00:56]} 22. bxc3 {[%clk 0:00:12.1]} 22... Nb6 {[%clk 0:00:56.2]}
23. Qb5 {[%clk 0:00:10.7]} 23... Qf6 {[%clk 0:00:54.8]} 24. Bb3 {[%clk
0:00:09.2]} 24... Rf8 {[%clk 0:00:53.2]} 25. Rf1 {[%clk 0:00:08.3]} 25... Qxc3
{[%clk 0:00:52.8]} 26. a4 {[%clk 0:00:08.3]} 26... a5 {[%clk 0:00:51.7]} 27. Bd1
{[%clk 0:00:07]} 27... Qc5 {[%clk 0:00:49.1]} 28. Qb3 {[%clk 0:00:06.8]} 28...
Qd4 {[%clk 0:00:47.5]} 29. Bf3 {[%clk 0:00:06.4]} 29... Qxa4 {[%clk 0:00:45.7]}
30. Qe3 {[%clk 0:00:06.9]} 30... Qd7 {[%clk 0:00:41.7]} 31. Rb1 {[%clk
0:00:06.9]} 31... a4 {[%clk 0:00:41.6]} 32. h3 {[%clk 0:00:06.6]} 32... d5
{[%clk 0:00:40.8]} 33. Qc5 {[%clk 0:00:06.5]} 33... Rf6 {[%clk 0:00:38]} 34. h4
{[%clk 0:00:03.4]} 34... Qd6 {[%clk 0:00:26.3]} 35. Qc3 {[%clk 0:00:03]} 35...
Re6 {[%clk 0:00:20.3]} 36. Qd3 {[%clk 0:00:02.6]} 36... Re7 {[%clk 0:00:18.6]}
37. g3 {[%clk 0:00:02.8]} 37... a3 {[%clk 0:00:18.9]} 38. Ra1 {[%clk 0:00:02.9]}
38... Nc4 {[%clk 0:00:14]} 39. Bxd5 {[%clk 0:00:02.7]} 39... Nb6 {[%clk
0:00:13.3]} 0-1

[Event "*** Titled Tuesday Blitz"]
[Site "Chess.com"]
[Date "2021.02.16"]
[Round "9"]
[White "francyIM"]
[Black "MFBerna"]
[Result "0-1"]
[WhiteElo "2673"]
[BlackElo "2516"]
[TimeControl "180+1"]
[EndTime "11:48:20 PST"]
[Termination "MFBerna won by resignation"]

1. e4 {[%clk 0:03:00.8]} 1... c5 {[%clk 0:02:53.4]} 2. Nf3 {[%clk 0:02:59.9]}
2... Nc6 {[%clk 0:02:52.9]} 3. b3 {[%clk 0:02:56.1]} 3... e5 {[%clk 0:02:49.7]}
4. Bb2 {[%clk 0:02:54.4]} 4... d6 {[%clk 0:02:49.7]} 5. Bc4 {[%clk 0:02:54.2]}
5... Be7 {[%clk 0:02:45.2]} 6. O-O {[%clk 0:02:54]} 6... Nf6 {[%clk 0:02:41.9]}
7. Re1 {[%clk 0:02:54.1]} 7... O-O {[%clk 0:02:42.2]} 8. h3 {[%clk 0:02:53.1]}
8... a6 {[%clk 0:02:42.2]} 9. c3 {[%clk 0:02:52.9]} 9... b5 {[%clk 0:02:41]} 10.
Bf1 {[%clk 0:02:52.4]} 10... Bb7 {[%clk 0:02:40.1]} 11. d4 {[%clk 0:02:51.7]}
11... Qc7 {[%clk 0:02:37.8]} 12. Nbd2 {[%clk 0:02:51.4]} 12... Rfe8 {[%clk
0:02:36.3]} 13. dxe5 {[%clk 0:02:46.5]} 13... dxe5 {[%clk 0:02:36.3]} 14. a4
{[%clk 0:02:46.8]} 14... Qb6 {[%clk 0:02:27.5]} 15. Qe2 {[%clk 0:02:41.8]} 15...
c4 {[%clk 0:02:17]} 16. axb5 {[%clk 0:02:33.5]} 16... axb5 {[%clk 0:02:17.2]}
17. bxc4 {[%clk 0:02:33.3]} 17... b4 {[%clk 0:02:17.6]} 18. cxb4 {[%clk
0:02:21.1]} 18... Bxb4 {[%clk 0:02:17.6]} 19. Rab1 {[%clk 0:02:16.8]} 19... Ra2
{[%clk 0:02:10.5]} 20. Qe3 {[%clk 0:02:10]} 20... Bc5 {[%clk 0:02:06.9]} 21. Qe2
{[%clk 0:01:52.1]} 21... Rxb2 {[%clk 0:01:20.5]} 22. Rxb2 {[%clk 0:01:49.8]}
22... Qxb2 {[%clk 0:01:21.4]} 23. Rb1 {[%clk 0:01:49.9]} 23... Qc2 {[%clk
0:01:19.1]} 24. Rxb7 {[%clk 0:01:48.6]} 24... Ra8 {[%clk 0:01:11.9]} 25. Rc7
{[%clk 0:01:47.1]} 25... Nd4 {[%clk 0:01:03.3]} 26. Qd3 {[%clk 0:01:36.6]} 26...
Nxf3+ {[%clk 0:00:50.1]} 27. Nxf3 {[%clk 0:01:37.5]} 27... Qxf2+ {[%clk
0:00:49.5]} 28. Kh2 {[%clk 0:01:30.9]} 28... Be3 {[%clk 0:00:25.8]} 29. Qe2
{[%clk 0:00:58.7]} 29... Bf4+ {[%clk 0:00:25.9]} 30. Kh1 {[%clk 0:00:57.1]}
30... Qg3 {[%clk 0:00:20.2]} 31. c5 {[%clk 0:00:50.3]} 31... h6 {[%clk
0:00:20.2]} 32. Qc4 {[%clk 0:00:44.4]} 32... Rf8 {[%clk 0:00:17]} 33. c6 {[%clk
0:00:43.1]} 33... Nh5 {[%clk 0:00:16.4]} 34. Qd3 {[%clk 0:00:23.2]} 34... Qf2
{[%clk 0:00:12.3]} 35. Ng1 {[%clk 0:00:01.1]} 35... Ng3+ {[%clk 0:00:11.4]} 36.
Kh2 {[%clk 0:00:01.7]} 36... Nxf1+ {[%clk 0:00:11.1]} 37. Kh1 {[%clk 0:00:02.2]}
37... Ng3+ {[%clk 0:00:09.8]} 38. Kh2 {[%clk 0:00:02.6]} 38... Ne2+ {[%clk
0:00:10.2]} 0-1

[Event "*** Titled Tuesday Blitz"]
[Site "Chess.com"]
[Date "2021.02.16"]
[Round "9"]
[White "GMJustin"]
[Black "AttilaTurzo"]
[Result "0-1"]
[WhiteElo "2341"]
[BlackElo "2510"]
[TimeControl "180+1"]
[EndTime "11:48:20 PST"]
[Termination "AttilaTurzo won on time"]

1. d4 {[%clk 0:02:50.5]} 1... d5 {[%clk 0:02:59.7]} 2. c4 {[%clk 0:02:49.5]}
2... c6 {[%clk 0:03:00.6]} 3. Nf3 {[%clk 0:02:47.1]} 3... Nf6 {[%clk 0:03:00.9]}
4. Nc3 {[%clk 0:02:42.5]} 4... a6 {[%clk 0:03:01.2]} 5. Ne5 {[%clk 0:02:31.4]}
5... e6 {[%clk 0:02:57.7]} 6. Bg5 {[%clk 0:02:19.7]} 6... h6 {[%clk 0:02:54.4]}
7. Bh4 {[%clk 0:02:09.6]} 7... c5 {[%clk 0:02:51.2]} 8. cxd5 {[%clk 0:02:02]}
8... exd5 {[%clk 0:02:47.3]} 9. e3 {[%clk 0:01:56.2]} 9... Be6 {[%clk
0:02:34.8]} 10. Qa4+ {[%clk 0:01:27]} 10... Nbd7 {[%clk 0:02:27.6]} 11. Nxd7
{[%clk 0:01:20.5]} 11... Bxd7 {[%clk 0:02:18]} 12. Qb3 {[%clk 0:01:11.2]} 12...
Bc6 {[%clk 0:02:06.5]} 13. dxc5 {[%clk 0:00:59]} 13... Bxc5 {[%clk 0:02:03.5]}
14. O-O-O {[%clk 0:00:55.7]} 14... O-O {[%clk 0:01:59.6]} 15. Kb1 {[%clk
0:00:52.6]} 15... Qe7 {[%clk 0:01:38.1]} 16. Be2 {[%clk 0:00:45.4]} 16... g5
{[%clk 0:01:31.8]} 17. Bg3 {[%clk 0:00:44.5]} 17... Rad8 {[%clk 0:01:30.7]} 18.
h4 {[%clk 0:00:37.9]} 18... d4 {[%clk 0:01:16.8]} 19. hxg5 {[%clk 0:00:30.4]}
19... hxg5 {[%clk 0:01:17.7]} 20. exd4 {[%clk 0:00:27.5]} 20... Rxd4 {[%clk
0:01:14]} 21. Rxd4 {[%clk 0:00:15.3]} 21... Bxd4 {[%clk 0:01:14.9]} 22. Bd3
{[%clk 0:00:14.6]} 22... Kg7 {[%clk 0:01:10.2]} 23. Qc2 {[%clk 0:00:13.8]} 23...
Rh8 {[%clk 0:01:03.3]} 24. Rxh8 {[%clk 0:00:13.4]} 24... Kxh8 {[%clk 0:01:04.2]}
25. f3 {[%clk 0:00:13.4]} 25... Kg7 {[%clk 0:01:03.9]} 26. Ne4 {[%clk 0:00:13]}
26... Nd5 {[%clk 0:00:58.7]} 27. Qc4 {[%clk 0:00:09.5]} 27... Be5 {[%clk
0:00:51.4]} 28. Bxe5+ {[%clk 0:00:09.4]} 28... Qxe5 {[%clk 0:00:52.3]} 29. Qc5
{[%clk 0:00:09.7]} 29... f6 {[%clk 0:00:48.5]} 30. g3 {[%clk 0:00:07.8]} 30...
Qc7 {[%clk 0:00:38.6]} 31. a3 {[%clk 0:00:07.3]} 31... Ne7 {[%clk 0:00:35.2]}
32. Qd4 {[%clk 0:00:04.9]} 32... Nd5 {[%clk 0:00:32.7]} 33. g4 {[%clk
0:00:04.4]} 33... Qe7 {[%clk 0:00:32]} 34. Nc3 {[%clk 0:00:03.6]} 34... Nf4
{[%clk 0:00:31.4]} 35. Be4 {[%clk 0:00:03.1]} 35... Ne6 {[%clk 0:00:28.6]} 36.
Qe3 {[%clk 0:00:02.6]} 36... Nc5 {[%clk 0:00:27.5]} 37. Qd4 {[%clk 0:00:02.9]}
37... Nxe4 {[%clk 0:00:27.5]} 38. Nxe4 {[%clk 0:00:03.1]} 38... Bxe4+ {[%clk
0:00:27.1]} 39. fxe4 {[%clk 0:00:03.4]} 39... Qe6 {[%clk 0:00:26.1]} 40. Kc2
{[%clk 0:00:02.8]} 40... Qxg4 {[%clk 0:00:26]} 41. Qd5 {[%clk 0:00:02.2]} 41...
Qc8+ {[%clk 0:00:25]} 42. Kd3 {[%clk 0:00:02.2]} 42... Qc6 {[%clk 0:00:24.4]}
43. Qd8 {[%clk 0:00:01.6]} 43... Qb5+ {[%clk 0:00:20.7]} 0-1

[Event "*** Titled Tuesday Blitz"]
[Site "Chess.com"]
[Date "2021.02.16"]
[Round "9"]
[White "ARTHURMOTIVATOR"]
[Black "frenchpin"]
[Result "0-1"]
[WhiteElo "2334"]
[BlackElo "2495"]
[TimeControl "180+1"]
[EndTime "11:48:22 PST"]
[Termination "frenchpin won on time"]

1. e4 {[%clk 0:03:00.9]} 1... e6 {[%clk 0:03:00.9]} 2. b3 {[%clk 0:02:59.4]}
2... d5 {[%clk 0:03:01.1]} 3. Bb2 {[%clk 0:02:56.5]} 3... Nc6 {[%clk 0:03:00.5]}
4. e5 {[%clk 0:02:49.5]} 4... Nge7 {[%clk 0:02:47]} 5. d4 {[%clk 0:02:38.6]}
5... Ng6 {[%clk 0:02:40.3]} 6. Nf3 {[%clk 0:02:38.2]} 6... Be7 {[%clk
0:02:38.8]} 7. Nbd2 {[%clk 0:02:31]} 7... O-O {[%clk 0:02:35.3]} 8. h4 {[%clk
0:02:25.2]} 8... f6 {[%clk 0:02:31.2]} 9. h5 {[%clk 0:02:17.5]} 9... Nf4 {[%clk
0:02:31]} 10. g3 {[%clk 0:02:02.3]} 10... fxe5 {[%clk 0:02:30.9]} 11. dxe5
{[%clk 0:01:57.8]} 11... Bb4 {[%clk 0:02:04.2]} 12. gxf4 {[%clk 0:01:54.3]}
12... Rxf4 {[%clk 0:02:05.1]} 13. Bd3 {[%clk 0:01:42.8]} 13... Qf8 {[%clk
0:01:58.8]} 14. c3 {[%clk 0:01:33]} 14... Bc5 {[%clk 0:01:50.5]} 15. Qe2 {[%clk
0:01:32.8]} 15... a5 {[%clk 0:01:44]} 16. O-O-O {[%clk 0:01:28.9]} 16... a4
{[%clk 0:01:40.8]} 17. Kb1 {[%clk 0:01:20.6]} 17... axb3 {[%clk 0:01:32]} 18.
axb3 {[%clk 0:01:18]} 18... Ba3 {[%clk 0:01:27.1]} 19. Ba1 {[%clk 0:01:06.6]}
19... Bd7 {[%clk 0:01:26.1]} 20. Bc2 {[%clk 0:00:52]} 20... Ne7 {[%clk
0:01:11.9]} 21. Qd3 {[%clk 0:00:40.1]} 21... Nf5 {[%clk 0:01:11.8]} 22. Nd4
{[%clk 0:00:37.5]} 22... Bc5 {[%clk 0:00:42.2]} 23. Nxf5 {[%clk 0:00:33.1]}
23... Rxf5 {[%clk 0:00:43.1]} 24. Rhg1 {[%clk 0:00:27.9]} 24... Qb8 {[%clk
0:00:40]} 25. Bb2 {[%clk 0:00:19.7]} 25... Qa7 {[%clk 0:00:32.1]} 26. Kc1 {[%clk
0:00:19.2]} 26... Bxf2 {[%clk 0:00:30.4]} 27. Rg2 {[%clk 0:00:16]} 27... Be3
{[%clk 0:00:29.5]} 28. Re1 {[%clk 0:00:14.2]} 28... Bh6 {[%clk 0:00:21.1]} 29.
Kd1 {[%clk 0:00:14.2]} 29... Raf8 {[%clk 0:00:18.9]} 30. Bc1 {[%clk 0:00:13.1]}
30... Qb6 {[%clk 0:00:18.3]} 31. b4 {[%clk 0:00:11.7]} 31... Bb5 {[%clk
0:00:18.5]} 32. Qg3 {[%clk 0:00:10.3]} 32... Rg5 {[%clk 0:00:15.9]} 33. Qh3
{[%clk 0:00:09.6]} 33... Rxg2 {[%clk 0:00:14.6]} 34. Qxg2 {[%clk 0:00:09.8]}
34... c5 {[%clk 0:00:12.1]} 35. Rg1 {[%clk 0:00:08.6]} 35... cxb4 {[%clk
0:00:11.7]} 36. Nb3 {[%clk 0:00:07.1]} 36... Rf2 {[%clk 0:00:05.1]} 0-1

[Event "*** Titled Tuesday Blitz"]
[Site "Chess.com"]
[Date "2021.02.16"]
[Round "9"]
[White "Srisshhhtea"]
[Black "Chernov_Alexander_A"]
[Result "1-0"]
[WhiteElo "2428"]
[BlackElo "2280"]
[TimeControl "180+1"]
[EndTime "11:48:22 PST"]
[Termination "Srisshhhtea won on time"]

1. d4 {[%clk 0:03:00.9]} 1... Nf6 {[%clk 0:02:59.2]} 2. c4 {[%clk 0:03:00.3]}
2... e6 {[%clk 0:02:59]} 3. Nf3 {[%clk 0:02:59.5]} 3... b6 {[%clk 0:02:58.6]} 4.
a3 {[%clk 0:02:58.1]} 4... Bb7 {[%clk 0:02:58]} 5. Nc3 {[%clk 0:02:58.8]} 5...
d5 {[%clk 0:02:57.7]} 6. cxd5 {[%clk 0:02:57.3]} 6... Nxd5 {[%clk 0:02:57.3]} 7.
Qc2 {[%clk 0:02:56.9]} 7... Be7 {[%clk 0:02:54.9]} 8. e4 {[%clk 0:02:57]} 8...
Nxc3 {[%clk 0:02:54.2]} 9. bxc3 {[%clk 0:02:57.9]} 9... c5 {[%clk 0:02:52.5]}
10. Bd3 {[%clk 0:02:57.2]} 10... h6 {[%clk 0:02:51.4]} 11. O-O {[%clk
0:02:54.2]} 11... O-O {[%clk 0:02:48.9]} 12. Bb2 {[%clk 0:02:51.5]} 12... Nc6
{[%clk 0:02:44.1]} 13. Rad1 {[%clk 0:02:50]} 13... Qc7 {[%clk 0:02:14]} 14. Qe2
{[%clk 0:02:47.2]} 14... Rad8 {[%clk 0:02:10.2]} 15. Rfe1 {[%clk 0:02:45.4]}
15... e5 {[%clk 0:02:04.3]} 16. d5 {[%clk 0:02:42.9]} 16... Na5 {[%clk
0:02:03.6]} 17. Nd2 {[%clk 0:02:05.5]} 17... Bc8 {[%clk 0:01:48.7]} 18. Nf1
{[%clk 0:02:03.2]} 18... c4 {[%clk 0:01:31.4]} 19. Bc2 {[%clk 0:01:59.6]} 19...
Nb7 {[%clk 0:01:27]} 20. Ne3 {[%clk 0:01:55.6]} 20... Nd6 {[%clk 0:01:24.9]} 21.
Bc1 {[%clk 0:01:49.3]} 21... b5 {[%clk 0:01:14.5]} 22. Ng4 {[%clk 0:01:39.6]}
22... Nb7 {[%clk 0:00:57.5]} 23. Bxh6 {[%clk 0:01:09]} 23... gxh6 {[%clk
0:00:34.1]} 24. Nxh6+ {[%clk 0:01:09.9]} 24... Kg7 {[%clk 0:00:33.8]} 25. Nf5+
{[%clk 0:01:05.6]} 25... Bxf5 {[%clk 0:00:32.4]} 26. exf5 {[%clk 0:01:06.5]}
26... Rh8 {[%clk 0:00:25.8]} 27. Qg4+ {[%clk 0:00:34.3]} 27... Kf8 {[%clk
0:00:24]} 28. Re3 {[%clk 0:00:34.7]} 28... Bf6 {[%clk 0:00:21.5]} 29. Rh3 {[%clk
0:00:31.2]} 29... Ke7 {[%clk 0:00:19.6]} 30. Re3 {[%clk 0:00:28.5]} 30... Nc5
{[%clk 0:00:15.1]} 31. f4 {[%clk 0:00:27.1]} 31... Rdg8 {[%clk 0:00:14.3]} 32.
Qe2 {[%clk 0:00:25]} 32... e4 {[%clk 0:00:13.7]} 33. d6+ {[%clk 0:00:23]} 33...
Qxd6 {[%clk 0:00:12.7]} 34. Rxd6 {[%clk 0:00:23.7]} 34... Kxd6 {[%clk
0:00:12.9]} 35. Bxe4 {[%clk 0:00:23.4]} 35... Kc7 {[%clk 0:00:09.7]} 36. Bd5
{[%clk 0:00:22]} 36... Rd8 {[%clk 0:00:07.2]} 37. Bxf7 {[%clk 0:00:20.8]} 37...
Rhf8 {[%clk 0:00:04.3]} 38. Be6 {[%clk 0:00:20]} 38... Rd3 {[%clk 0:00:02.3]}
39. Rxd3 {[%clk 0:00:19.5]} 39... cxd3 {[%clk 0:00:01.8]} 40. Qd1 {[%clk
0:00:19.4]} 1-0

[Event "*** Titled Tuesday Blitz"]
[Site "Chess.com"]
[Date "2021.02.16"]
[Round "9"]
[White "MariaFominykh"]
[Black "Chamal_Gedgafov"]
[Result "1-0"]
[WhiteElo "2261"]
[BlackElo "2319"]
[TimeControl "180+1"]
[EndTime "11:48:22 PST"]
[Termination "MariaFominykh won on time"]

1. d4 {[%clk 0:03:00.9]} 1... Nf6 {[%clk 0:02:58.7]} 2. Nf3 {[%clk 0:03:00]}
2... e6 {[%clk 0:02:58.7]} 3. g3 {[%clk 0:02:58.4]} 3... b6 {[%clk 0:02:58.3]}
4. Bg2 {[%clk 0:02:57.4]} 4... Bb7 {[%clk 0:02:58]} 5. O-O {[%clk 0:02:57.4]}
5... Be7 {[%clk 0:02:57.8]} 6. b3 {[%clk 0:02:55.7]} 6... c5 {[%clk 0:02:56.5]}
7. Bb2 {[%clk 0:02:50.6]} 7... O-O {[%clk 0:02:52.7]} 8. c4 {[%clk 0:02:43.4]}
8... cxd4 {[%clk 0:02:52]} 9. Nxd4 {[%clk 0:02:42.3]} 9... Bxg2 {[%clk
0:02:52.9]} 10. Kxg2 {[%clk 0:02:42.8]} 10... d6 {[%clk 0:02:51.7]} 11. Nc3
{[%clk 0:02:41.7]} 11... a6 {[%clk 0:02:51.6]} 12. e4 {[%clk 0:02:40.2]} 12...
Qc7 {[%clk 0:02:51.1]} 13. f3 {[%clk 0:02:39.2]} 13... Nbd7 {[%clk 0:02:49.7]}
14. Qd2 {[%clk 0:02:35.2]} 14... Rfd8 {[%clk 0:02:48.9]} 15. Rac1 {[%clk
0:02:33]} 15... Rac8 {[%clk 0:02:48.5]} 16. Rfd1 {[%clk 0:02:32.1]} 16... Qb7
{[%clk 0:02:47.5]} 17. Qe2 {[%clk 0:02:18.2]} 17... h6 {[%clk 0:02:43.6]} 18.
Nc2 {[%clk 0:02:13.3]} 18... Rb8 {[%clk 0:02:36.6]} 19. Ba3 {[%clk 0:02:05.9]}
19... Nc5 {[%clk 0:02:30.5]} 20. Nd4 {[%clk 0:01:50.1]} 20... Bf8 {[%clk
0:02:22]} 21. b4 {[%clk 0:01:49.1]} 21... Ncd7 {[%clk 0:02:16.4]} 22. b5 {[%clk
0:01:49.2]} 22... Ne5 {[%clk 0:01:35.9]} 23. f4 {[%clk 0:01:37.8]} 23... Nxc4
{[%clk 0:01:29.5]} 24. Qxc4 {[%clk 0:01:35]} 24... d5 {[%clk 0:01:25.8]} 25. Qb3
{[%clk 0:01:22.5]} 25... axb5 {[%clk 0:01:18]} 26. Bxf8 {[%clk 0:01:17.9]} 26...
Rxf8 {[%clk 0:01:16.7]} 27. e5 {[%clk 0:01:16.6]} 27... Ne4 {[%clk 0:01:16.1]}
28. Ncxb5 {[%clk 0:01:13.3]} 28... Ra8 {[%clk 0:01:11.3]} 29. Nd6 {[%clk
0:00:59.6]} 29... Qa6 {[%clk 0:01:07.8]} 30. Rc2 {[%clk 0:00:51.8]} 30... Nc5
{[%clk 0:00:54.4]} 31. Qb5 {[%clk 0:00:50.1]} 31... Qa3 {[%clk 0:00:47.5]} 32.
Qe2 {[%clk 0:00:43.8]} 32... Rfb8 {[%clk 0:00:40.2]} 33. f5 {[%clk 0:00:38.1]}
33... exf5 {[%clk 0:00:34.8]} 34. N4xf5 {[%clk 0:00:35.8]} 34... Ne6 {[%clk
0:00:35]} 35. Qg4 {[%clk 0:00:27.9]} 35... Ra4 {[%clk 0:00:25.1]} 36. Nxh6+
{[%clk 0:00:22.3]} 36... Kf8 {[%clk 0:00:20.5]} 37. Qf5 {[%clk 0:00:21.1]} 37...
Nd8 {[%clk 0:00:17.2]} 38. Ndxf7 {[%clk 0:00:19.6]} 38... Qe7 {[%clk 0:00:08.3]}
39. Nxd8+ {[%clk 0:00:19]} 39... Ke8 {[%clk 0:00:07.5]} 40. Nc6 {[%clk 0:00:18]}
1-0

[Event "*** Titled Tuesday Blitz"]
[Site "Chess.com"]
[Date "2021.02.16"]
[Round "9"]
[White "akanga001"]
[Black "lelya96"]
[Result "0-1"]
[WhiteElo "1982"]
[BlackElo "2244"]
[TimeControl "180+1"]
[EndTime "11:48:24 PST"]
[Termination "lelya96 won on time"]

1. d4 {[%clk 0:03:00.9]} 1... d5 {[%clk 0:02:59]} 2. Nf3 {[%clk 0:03:01]} 2...
Nf6 {[%clk 0:02:58]} 3. Bg5 {[%clk 0:03:01]} 3... e6 {[%clk 0:02:56.6]} 4. e3
{[%clk 0:03:01]} 4... Be7 {[%clk 0:02:56.3]} 5. Bd3 {[%clk 0:03:01.1]} 5... c5
{[%clk 0:02:54.5]} 6. c3 {[%clk 0:03:00.3]} 6... Nbd7 {[%clk 0:02:52.3]} 7. O-O
{[%clk 0:03:00]} 7... Qc7 {[%clk 0:02:50]} 8. Nbd2 {[%clk 0:02:59]} 8... O-O
{[%clk 0:02:47.5]} 9. a4 {[%clk 0:02:57.8]} 9... e5 {[%clk 0:02:45.4]} 10. dxe5
{[%clk 0:02:38.9]} 10... Nxe5 {[%clk 0:02:44.7]} 11. Nxe5 {[%clk 0:02:38.4]}
11... Qxe5 {[%clk 0:02:34.9]} 12. Bf4 {[%clk 0:02:38.9]} 12... Qe6 {[%clk
0:02:25.4]} 13. a5 {[%clk 0:02:29.9]} 13... Rd8 {[%clk 0:02:21.8]} 14. Nf3
{[%clk 0:02:26.6]} 14... Ne4 {[%clk 0:02:17]} 15. Qc2 {[%clk 0:02:07.2]} 15...
Bd7 {[%clk 0:02:08.6]} 16. c4 {[%clk 0:01:53.5]} 16... Bc6 {[%clk 0:02:04.6]}
17. Ne5 {[%clk 0:01:43.8]} 17... Nf6 {[%clk 0:01:24.5]} 18. Nxc6 {[%clk
0:01:36.6]} 18... Qxc6 {[%clk 0:01:23.2]} 19. cxd5 {[%clk 0:01:32.8]} 19... Qxd5
{[%clk 0:01:21.2]} 20. Bc4 {[%clk 0:01:29.7]} 20... Qh5 {[%clk 0:01:20.2]} 21.
h3 {[%clk 0:01:20.4]} 21... Rac8 {[%clk 0:01:18.5]} 22. Rfd1 {[%clk 0:01:09.9]}
22... Qg6 {[%clk 0:01:11.9]} 23. Bd3 {[%clk 0:00:59.4]} 23... Qh5 {[%clk
0:01:08.4]} 24. Bf5 {[%clk 0:00:53.5]} 24... Ra8 {[%clk 0:01:02.5]} 25. Kh2
{[%clk 0:00:42.5]} 25... g5 {[%clk 0:00:41.7]} 26. g4 {[%clk 0:00:32.8]} 26...
Qh6 {[%clk 0:00:39.8]} 27. Bc7 {[%clk 0:00:25.8]} 27... Rf8 {[%clk 0:00:33.4]}
28. Qb3 {[%clk 0:00:20.4]} 28... Qg7 {[%clk 0:00:21.9]} 29. Qxb7 {[%clk
0:00:18.2]} 29... Rfe8 {[%clk 0:00:19.5]} 30. Bg3 {[%clk 0:00:14.4]} 30... h5
{[%clk 0:00:13.3]} 31. Rac1 {[%clk 0:00:11.8]} 31... hxg4 {[%clk 0:00:12.7]} 32.
hxg4 {[%clk 0:00:11.6]} 32... Qh6+ {[%clk 0:00:12.9]} 33. Kg2 {[%clk 0:00:11.2]}
33... Qg7 {[%clk 0:00:12]} 34. Rh1 {[%clk 0:00:11.1]} 34... Rad8 {[%clk
0:00:11.9]} 35. Qxa7 {[%clk 0:00:09.1]} 35... Bd6 {[%clk 0:00:11.6]} 36. Rcd1
{[%clk 0:00:07.3]} 36... Bxg3 {[%clk 0:00:11.2]} 37. Kxg3 {[%clk 0:00:07.8]}
37... Nd5 {[%clk 0:00:10.6]} 0-1

[Event "*** Titled Tuesday Blitz"]
[Site "Chess.com"]
[Date "2021.02.16"]
[Round "9"]
[White "zmeeed67"]
[Black "vladgoncharov"]
[Result "1-0"]
[WhiteElo "2325"]
[BlackElo "2461"]
[TimeControl "180+1"]
[EndTime "11:48:29 PST"]
[Termination "zmeeed67 won on time"]

1. e4 {[%clk 0:03:00.9]} 1... e6 {[%clk 0:02:54.8]} 2. Nf3 {[%clk 0:02:59.8]}
2... d5 {[%clk 0:02:55.1]} 3. e5 {[%clk 0:02:59.4]} 3... c5 {[%clk 0:02:54.4]}
4. b4 {[%clk 0:02:58.8]} 4... cxb4 {[%clk 0:02:55.1]} 5. a3 {[%clk 0:02:58.6]}
5... b3 {[%clk 0:02:55.7]} 6. cxb3 {[%clk 0:02:54.4]} 6... Nc6 {[%clk
0:02:55.7]} 7. d4 {[%clk 0:02:50.6]} 7... Bd7 {[%clk 0:02:51.7]} 8. b4 {[%clk
0:02:49.3]} 8... Rc8 {[%clk 0:02:51.4]} 9. Be3 {[%clk 0:02:43.7]} 9... Nge7
{[%clk 0:02:50]} 10. Bd3 {[%clk 0:02:40.4]} 10... Nf5 {[%clk 0:02:49.2]} 11. O-O
{[%clk 0:02:34.2]} 11... Be7 {[%clk 0:02:43.3]} 12. Nbd2 {[%clk 0:02:31.3]}
12... O-O {[%clk 0:02:32.1]} 13. Nb3 {[%clk 0:02:30.1]} 13... Nxe3 {[%clk
0:02:26.1]} 14. fxe3 {[%clk 0:02:29.6]} 14... f5 {[%clk 0:02:26.5]} 15. Nc5
{[%clk 0:02:19]} 15... Rc7 {[%clk 0:02:24.1]} 16. Rc1 {[%clk 0:02:08.5]} 16...
Bc8 {[%clk 0:02:21.4]} 17. Qb3 {[%clk 0:01:55.4]} 17... b6 {[%clk 0:01:59.1]}
18. Na6 {[%clk 0:01:51]} 18... Bxa6 {[%clk 0:01:57.7]} 19. Bxa6 {[%clk
0:01:50.6]} 19... Nb8 {[%clk 0:01:58.2]} 20. Bd3 {[%clk 0:01:48.9]} 20... Qd7
{[%clk 0:01:50]} 21. Qb2 {[%clk 0:01:36.7]} 21... Rfc8 {[%clk 0:01:45.9]} 22.
Rfd1 {[%clk 0:01:30.8]} 22... Qa4 {[%clk 0:01:27.9]} 23. Kf2 {[%clk 0:01:23.8]}
23... Kf7 {[%clk 0:01:18]} 24. Rxc7 {[%clk 0:01:20.5]} 24... Rxc7 {[%clk
0:01:16.4]} 25. Rc1 {[%clk 0:01:19.9]} 25... Rxc1 {[%clk 0:01:11.7]} 26. Qxc1
{[%clk 0:01:20]} 26... Qc6 {[%clk 0:00:50.8]} 27. Qd2 {[%clk 0:01:12.1]} 27...
h6 {[%clk 0:00:40.5]} 28. h4 {[%clk 0:01:06.5]} 28... a6 {[%clk 0:00:32.6]} 29.
h5 {[%clk 0:01:06.2]} 29... b5 {[%clk 0:00:32.2]} 30. g4 {[%clk 0:01:03.6]}
30... fxg4 {[%clk 0:00:29.4]} 31. Nh2 {[%clk 0:01:03.6]} 31... Nd7 {[%clk
0:00:22.4]} 32. Nxg4 {[%clk 0:01:01.8]} 32... Bg5 {[%clk 0:00:19.6]} 33. Nh2
{[%clk 0:00:53.1]} 33... Bh4+ {[%clk 0:00:17.6]} 34. Ke2 {[%clk 0:00:51.5]}
34... Nb6 {[%clk 0:00:17.5]} 35. Nf3 {[%clk 0:00:51.5]} 35... Be7 {[%clk
0:00:17.4]} 36. Bg6+ {[%clk 0:00:48.9]} 36... Kg8 {[%clk 0:00:13.7]} 37. Qd3
{[%clk 0:00:49.3]} 37... Qc4 {[%clk 0:00:12.9]} 38. Nd2 {[%clk 0:00:49.7]} 38...
Qxd3+ {[%clk 0:00:12.4]} 39. Kxd3 {[%clk 0:00:49.4]} 39... Nc4 {[%clk
0:00:11.7]} 40. Nxc4 {[%clk 0:00:48.4]} 40... bxc4+ {[%clk 0:00:10.5]} 41. Kc3
{[%clk 0:00:48.2]} 41... Kf8 {[%clk 0:00:11]} 42. e4 {[%clk 0:00:48.5]} 42...
Bg5 {[%clk 0:00:07.6]} 43. a4 {[%clk 0:00:43.3]} 43... Ke7 {[%clk 0:00:05.8]}
44. Bh7 {[%clk 0:00:40.3]} 44... Bh4 {[%clk 0:00:05.1]} 45. Bg8 {[%clk
0:00:40.1]} 45... Be1+ {[%clk 0:00:04]} 46. Kb2 {[%clk 0:00:39.4]} 46... dxe4
{[%clk 0:00:01.7]} 47. Bh7 {[%clk 0:00:33.9]} 47... e3 {[%clk 0:00:01.6]} 48. b5
{[%clk 0:00:31.8]} 1-0